Cogmind - Beta 12 @@@ ROGUE MODE // 2023.03.06 @ 09:59:44 Player: Dumalacath Result: Destroyed by D-53 Grenadier with Mini Grenade Launcher Performance ------------- Evolutions (0) 0 Regions Visited (4) 800 Robots Destroyed (4) 20 Value Destroyed (149) 149 Prototype IDs (23) 460 Alien Tech Used (0) 0 Bonus (300) 300 TOTAL SCORE: 1729 Bonus ------- Aligned with FarCom 300 Cogmind --------- Core Integrity 0/250 Matter 254/300 Energy 100/100 System Corruption 0% Temperature Cool (0) Movement Core (200) Ox3 Location -9/Mines Parts ------- > --- POWER (1) -------- (None) > --- PROPULSION (2) --- (None) > --- UTILITY (2) ------ Medium Storage Unit > --- WEAPON (2) ------- (None) > --- INVENTORY (10) --- Flying Fortress v7 Experimental Sensor Array Shotgun Shotgun Rocket Launcher Hammer Peak State ------------ > --- POWER ------------ Improved Ion Engine > --- PROPULSION ------- Aluminum Leg Aluminum Leg > --- UTILITY ---------- Medium Storage Unit Structural Scanner > --- WEAPON ----------- Shotgun Shotgun > --- INVENTORY -------- Improved Ion Engine Flying Fortress v7 Experimental Sensor Array Shotgun Shotgun Rocket Launcher Hammer [Rating: 15] Favorites ----------- Power Improved Ion Engine Engine Improved Ion Engine Propulsion Aluminum Leg Leg Aluminum Leg Utility Medium Storage Unit Device Structural Scanner Storage Medium Storage Unit Weapon Shotgun Energy Gun Small Laser Ballistic Gun Shotgun Build | -11 -10 -10 -10 -9 ------- Run | Jun Mat Min Exi Min Slots Evolved . | . . . . . Power . | . . . . . Propulsion . | . . . . . Utility . | . . . . . Weapon . | . . . . . Parts Attached 17 | 6 8 . 2 1 Power 3 | 1 1 . . 1 Engine 3 | 1 1 . . 1 Core . | . . . . . Reactor . | . . . . . Propulsion 6 | 2 2 . 2 . Treads . | . . . . . Leg 6 | 2 2 . 2 . Wheel . | . . . . . Hover . | . . . . . Flight . | . . . . . Utility 3 | 1 2 . . . Device 1 | . 1 . . . Storage 2 | 1 1 . . . Processor . | . . . . . Hackware . | . . . . . Protection . | . . . . . Artifact . | . . . . . Weapon 5 | 2 3 . . . Energy Gun 1 | 1 . . . . Energy Cannon . | . . . . . Ballistic Gun 4 | 1 3 . . . Ballistic Cannon . | . . . . . Launcher . | . . . . . Special Weapon . | . . . . . Impact Weapon . | . . . . . Slashing Weapon . | . . . . . Piercing Weapon . | . . . . . Special Melee Weapon . | . . . . . Unidentified Prototypes . | . . . . . Parts Lost 7 | . . . . 7 Power 2 | . . . . 2 Propulsion 2 | . . . . 2 Utility 1 | . . . . 1 Weapon 2 | . . . . 2 Highest Loss Streak 7 | . . . . 7 To Critical Strikes . | . . . . . Average Slot Usage (%) 99 | . 99 100 99 96 Engine 14 | . 14 14 14 14 Leg 27 | . 28 28 27 28 Device 13 | . 12 14 14 12 Storage 14 | . 15 14 14 14 Ballistic Gun 27 | . 24 28 28 25 Naked Turns . | . . . . . Heaviest Build 24 | 12 24 24 24 24 Greatest Support 20 | 20 20 20 20 20 Greatest Overweight (x) 2 | 1 1 1 2 1 Average Overweight (x) . | . . 1 1 . Largest Inventory Capacity 10 | 8 10 10 10 10 Average Capacity 9 | 7 9 10 10 10 Most Carried 10 | 6 10 10 10 10 Average Carried 9 | 3 8 9 9 9 Final Capacity 10 | 8 10 10 10 10 Final Carried 10 | 6 10 10 10 9 Class Distribution -------------------- 100% | Mutant Dominant Class ---------------- Mutant | -10/Materials Mutant | -10/Mines Mutant | -10/Exiles Mutant | -9/Mines Resources | -11 -10 -10 -10 -9 ----------- Run | Jun Mat Min Exi Min Matter Collected 333 | 233 100 . . . Remotely . | . . . . . Salvage Created 184 | . 184 . . . Parts 11 | . 11 . . . Haulers Intercepted . | . . . . . Recyclers Shooed . | . . . . . Parts Field Recycled . | . . . . . Retrieved Matter . | . . . . . Parts Self-Destructed . | . . . . . Prevented . | . . . . . Kills | -11 -10 -10 -10 -9 ------- Run | Jun Mat Min Exi Min Combat Hostiles Destroyed 4 | . 4 . . . Guns 4 | . 4 . . . Classes Destroyed 1 | . 1 . . . Grunt 4 | . 4 . . . Best Kill Streak 2 | . 2 . . . Combat Bots Only 2 | . 2 . . . Max Kills in Single Turn 1 | . 1 . . . Gunslinging . | . . . . . Exploded . | . . . . . Melee . | . . . . . Uniques/NPCs Destroyed . | . . . . . Combat | -11 -10 -10 -10 -9 -------- Run | Jun Mat Min Exi Min Damage Taken 1060 | . 205 . . 855 Core 293 | . 23 . . 270 Absorbed by Shields . | . . . . . Core Remaining (%) 100 | 100 . . . . Volleys Fired 16 | . 16 . . . Largest 2 | . 2 . . . Hottest 60 | . 60 . . . Shots Fired 32 | . 32 . . . Gun 32 | . 32 . . . Cannon . | . . . . . Launcher . | . . . . . Special . | . . . . . Kinetic 27 | . 27 . . . Thermal 5 | . 5 . . . Explosive . | . . . . . Electromagnetic . | . . . . . Robot Hit Streak 4 | . 4 . . . Robot Miss Streak 5 | . 5 . . . Penetration Max . | . . . . . Secondary Targets . | . . . . . Shots Hit Robots 19 | . 19 . . . Core Hits 9 | . 9 . . . Critical Kills . | . . . . . Critical Parts Destroyed . | . . . . . Critical Strikes . | . . . . . Melee Attacks . | . . . . . Impact . | . . . . . Slashing . | . . . . . Piercing . | . . . . . Sneak Attacks . | . . . . . Combat Hostiles . | . . . . . Follow-up Attacks . | . . . . . Damage Inflicted 200 | . 197 . . 3 Guns 197 | . 197 . . . Cannons . | . . . . . Explosions . | . . . . . Melee . | . . . . . Ramming 3 | . . . . 3 Kinetic 153 | . 153 . . . Thermal 44 | . 44 . . . Explosive . | . . . . . Electromagnetic . | . . . . . Impact . | . . . . . Slashing . | . . . . . Piercing . | . . . . . Highest Corruption . | . . . . . Average Corruption . | . . . . . Corruption Purged . | . . . . . Corruption Blocked . | . . . . . Overload Shots . | . . . . . Overflow Damage . | . . . . . Projectiles . | . . . . . Explosions . | . . . . . Melee . | . . . . . Knockbacks . | . . . . . Impact . | . . . . . Kinetic . | . . . . . Secondary . | . . . . . Self-Inflicted Damage . | . . . . . Shots . | . . . . . Rammed . | . . . . . Targets Rammed 1 | . . . . 1 Kicked 1 | . . . . 1 Crushed . | . . . . . Highest Temperature 85 | . 85 . . . Average Temperature 30 | . 30 . . . Received Heat Transfer 111 | . 111 . . . Siege Activations . | . . . . . Robots Corrupted . | . . . . . Combat Hostiles . | . . . . . Parts Fried . | . . . . . Impact Corruptions . | . . . . . Robots Melted . | . . . . . Combat Hostiles . | . . . . . Parts Melted . | . . . . . Heat Transferred 100 | . 100 . . . Parts Sabotaged . | . . . . . Parts Stolen . | . . . . . Parts Stripped . | . . . . . Power Chain Reactions . | . . . . . Missiles Intercepted . | . . . . . Alert | -11 -10 -10 -10 -9 ------- Run | Jun Mat Min Exi Min Peak Influence 155 | . 155 60 . . Initial 60 | . . 60 . . Average 53 | . 96 60 . . Maximum Alert Level . | . . . . . Low Security (%) 100 | 100 100 100 . 100 Level 1 . | . . . . . Level 2 . | . . . . . Level 3 . | . . . . . Level 4 . | . . . . . Level 5 . | . . . . . High Security . | . . . . . Max Security . | . . . . . Squads Dispatched 2 | . 2 . . . Investigation . | . . . . . Extermination . | . . . . . Reinforcement 2 | . 2 . . . Assault . | . . . . . Garrison . | . . . . . Intercept . | . . . . . Searches Triggered . | . . . . . Construction Impeded . | . . . . . Haulers Reinforced . | . . . . . Active Scanning Responses . | . . . . . Cargo Convoy Interrupts . | . . . . . Stealth | -11 -10 -10 -10 -9 --------- Run | Jun Mat Min Exi Min Distress Signals 1 | . 1 . . . Communications Jammed . | . . . . . Distress Signals . | . . . . . Times Spotted 15 | . 8 . . 7 Peak Tracking Total 7 | . 4 . . 7 Tactical Retreats . | . . . . . Traps | -11 -10 -10 -10 -9 ------- Run | Jun Mat Min Exi Min Traps Triggered . | . . . . . Indirectly . | . . . . . Trap Hack Attempts . | . . . . . Triggered . | . . . . . Disarmed . | . . . . . Reprogrammed . | . . . . . Reused . | . . . . . Traps Extracted . | . . . . . Installed . | . . . . . Triggered . | . . . . . Machines | -11 -10 -10 -10 -9 ---------- Run | Jun Mat Min Exi Min Machines Disabled . | . . . . . Max in Single Turn . | . . . . . Machines Repaired . | . . . . . Machines Sabotaged . | . . . . . Overloaded Fab Kills . | . . . . . Hacking | -11 -10 -10 -10 -9 --------- Run | Jun Mat Min Exi Min Machines Accessed 3 | . 1 . 2 . Terminals 1 | . 1 . . . Fabricators . | . . . . . Repair Stations . | . . . . . Recycling Units . | . . . . . Scanalyzers . | . . . . . Garrison Access . | . . . . . Total Hacks 4 | . 2 . 2 . Successful 2 | . . . 2 . Failed 2 | . 2 . . . Catastrophic . | . . . . . Database Lockouts . | . . . . . Manual 3 | . 2 . 1 . Terminals 2 | . 2 . . . Fabricators . | . . . . . Repair Stations . | . . . . . Recycling Units . | . . . . . Scanalyzers . | . . . . . Garrison Access . | . . . . . Terminal Hacks 2 | . . . 2 . Record 1 | . . . 1 . EX-Prototype ID Bank 1 | . . . 1 . Fabricator Hacks . | . . . . . Repair Station Hacks . | . . . . . Recycling Unit Hacks . | . . . . . Scanalyzer . | . . . . . Garrison Access Hacks . | . . . . . Unauthorized Hacks . | . . . . . Terminals . | . . . . . Fabricators . | . . . . . Repair Stations . | . . . . . Recycling Units . | . . . . . Scanalyzers . | . . . . . Garrison Access . | . . . . . Data Cores Recovered . | . . . . . Used . | . . . . . Hacking Detections 1 | . 1 . . . Full Trace Events . | . . . . . Feedback Events . | . . . . . Feedback Blocked . | . . . . . Robot Schematics Acquired . | . . . . . Robots Built . | . . . . . Authchips . | . . . . . Time . | . . . . . Total Robot Build Rating . | . . . . . Part Schematics Acquired . | . . . . . Parts Built . | . . . . . Authchips . | . . . . . Time . | . . . . . Total Part Build Rating . | . . . . . Parts Repaired . | . . . . . Time . | . . . . . Parts Recycled . | . . . . . Recycled Matter . | . . . . . Retrieved Matter . | . . . . . Retrieved Components . | . . . . . Parts Scanalyzed . | . . . . . Part Schematics Acquired . | . . . . . Parts Damaged . | . . . . . Bothacking | -11 -10 -10 -10 -9 ------------ Run | Jun Mat Min Exi Min Used RIF Installer . | . . . . . Robots Hacked . | . . . . . Non-combat . | . . . . . Combat . | . . . . . Robot Hacks Applied . | . . . . . Relay Couplers Released . | . . . . . Fabnet Peak Effective % . | . . . . . Robots Rewired . | . . . . . Allies Hacked . | . . . . . Hacks Repelled . | . . . . . Allies | -11 -10 -10 -10 -9 -------- Run | Jun Mat Min Exi Min Total Allies 2 | . . . . 2 Largest Group . | . . . . . Highest-Rated Group . | . . . . . Highest-Rated Ally . | . . . . . Total Orders . | . . . . . Ally Attacks 3 | . . . . 3 Total Damage 31 | . . . . 31 Kills . | . . . . . Allies Corrupted . | . . . . . Allies Melted . | . . . . . Intel | -11 -10 -10 -10 -9 ------- Run | Jun Mat Min Exi Min Robot Analysis Total . | . . . . . Derelict Logs Recovered . | . . . . . Drone Launches . | . . . . . Drone Recoveries . | . . . . . Exploration | -11 -10 -10 -10 -9 ------------- Run | Jun Mat Min Exi Min Turns Passed 1338 | 75 214 320 599 130 Spaces Moved 694 | 50 97 167 312 68 Core 8 | 8 . . . . Treads . | . . . . . Legs 686 | 42 97 167 312 68 Wheels . | . . . . . Hover . | . . . . . Flight . | . . . . . Fastest Speed 50 | 50 120 190 190 120 Average Speed 178 | 121 148 190 190 186 Slowest Speed 260 | 190 190 190 260 190 Overloaded Moves . | . . . . . Propulsion Burnouts . | . . . . . Robots Hopped . | . . . . . Cave-ins Triggered . | . . . . . Exploration Rate (%) 33 | 4 21 43 62 37 Regions Visited 4 Branch Regions 3 Pre-discovered Areas 1 | . . . 1 . Known Exits Taken . | . . . . . Unknown Exits Taken 4 | 1 1 1 1 . Scrap Searched . | . . . . . Spaces Dug . | . . . . . Terrain Destroyed . | . . . . . Melee . | . . . . . Projectile . | . . . . . AOE . | . . . . . Terrain Rammed . | . . . . . Walls Destroyed . | . . . . . Machines Disabled . | . . . . . Actions | -11 -10 -10 -10 -9 --------- Run | Jun Mat Min Exi Min Total 767 | 61 145 171 320 70 Wait 4 | . 3 1 . . Move 690 | 49 96 166 311 68 Hop . | . . . . . Pick Up 19 | 6 10 2 1 . Fast Attach 10 | 6 2 . 2 . Attach 1 | . . . . 1 Detach . | . . . . . Swap 6 | . 6 . . . Drop 20 | . 12 2 6 . Fire 16 | . 16 . . . Melee . | . . . . . Ram . | . . . . . Kick 1 | . . . . 1 Crush . | . . . . . Escape Stasis . | . . . . . Rewire . | . . . . . Trap . | . . . . . Miscellaneous . | . . . . . Route ------- -11/Junkyard -10/Materials -10/Mines (discovered 2 exits: [*Mat] / *Exi) -10/Exiles -9/Mines History --------- Turn | Location | Event 53 | -11/Junkyard | Discovered new exit (range 14) 76 | -11/Junkyard | Entered Materials 189 | -10/Materials | Discovered new exit (range 10) 290 | -10/Materials | Entered Mines 298 | -10/Mines | Discovered new exit (range 10) 303 | -10/Mines | Received a Rocket Launcher from a helpful Derelict 329 | -10/Mines | Build established: Mutant 486 | -10/Mines | Found a damaged Exp. Sensor Array with a note attached 490 | -10/Mines | Found Prototype Device 600 | -10/Mines | Deemed a non-threat by the Exiles lab entrance 600 | -10/Mines | Discovered new exit (range 6) 610 | -10/Mines | Entered Exiles 658 | -10/Exiles | Met 8R-AWN 690 | -10/Exiles | Met EX-HEX 764 | -10/Exiles | Met EX-DEC 922 | -10/Exiles | Met EX-BIN 945 | -10/Exiles | Aligned with FarCom system 947 | -10/Exiles | Given EX-Vault access code 996 | -10/Exiles | Opened EX-Vault 1015 | -10/Exiles | Found Flying Fortress v7 1063 | -10/Exiles | Warned to stay clear of 0b10 Research branches 1081 | -10/Exiles | Exiles lab attacked by MAIN.C 1135 | -10/Exiles | Learned location of Zion (-6) 1192 | -10/Exiles | Discovered new exit (range 11) 1209 | -10/Exiles | Left Exiles lab with Flying Fortress v7 1209 | -10/Exiles | Entered Mines 1300 | -9/Mines | Assembled infested the area 1326 | -9/Mines | Assisted by bots powering up and referring to "LRC-V3" 1334 | -9/Mines | Core integrity fell below 50% 1338 | -9/Mines | Core integrity fell below 20% 1339 | -9/Mines | Destroyed by D-53 Grenadier with Mini Grenade Launcher Last Messages --------------- 01329_ Shotgun destroyed. 01329_ Trooper 2b destroyed. 01330_ K-01 Serf collects debris. 01331_ The unstable cave ceiling collapses. 01331_ T-07 Excavator is excavating. 01331_ K-01 Serf collects debris. 01331_ K-01 Serf destroyed. 01331_ Aluminum Leg destroyed. 01332_ The unstable cave ceiling collapses. 01332_ K-01 Serf collects debris. 01335_ T-07 Excavator is excavating. 01335_ as-12414 destroyed. 01335_ K-01 Serf destroyed. 01336_ The unstable cave ceiling collapses. 01337_ Imp. Ion Engine destroyed. 01337_ as-05442 destroyed. 01339_ The unstable cave ceiling collapses. 01339_ T-07 Excavator is excavating. 01339_ Aluminum Leg destroyed. 01339_ K-01 Serf destroyed. Map ----- +----------------------------------------------------+ | ??????????????????????????????????????? | | ??????????????????????????????????????? | | ??????????????????????????????????????? | | ????????????????????????? ##??????????? | | ????????????????????????? ###?????????? | | ????????????????????????? ###????????? | | ????????????????????????? ####??????? | | ?????????????????????????? ###??????? | | ?????????????????????????? ###?????? | | ?????????????????????????# ####????? | | ?????????????????????????## ####???? | | ????????????????????????### ###???? | | ????????????????????????### ##???? | | ?????????????????###????## ???? | | ???????????????### ####### ?????? | | ???????????????# # #### ##?????? | | ??????????????## #### ###????? | | ??????????????# # ### ####???? | | ?????????????## # %* ####??? | | ????????????### # # ## = #####? | | ???????????### # a ##### | | ??????????## a ### | | ??????????# a ### ## | | ?????????## ####### | | ???????#### d # ######## | | ??????# ! @ ###???#### | | ??????# t % d ######????#### | | ??????# #* ######???###### | | ??????##### ##???????###### | | ???????####%## #???????### | | ?????????## #### ?????### | | ????????? ???? ?###### | | ???????## #????? ###### # | | ???????## ?????? ## # | | ???????## ??????# t # | | ?????????????????# ## | | ??????????????????# ####### | | ??????????????????? ######## | | ??????????????????? #?????### | | ????????????????????????????### | | ?????????????????????????????### ### | | ?????????????????????????????#### #### | | ??????????????????????????????######### | | ???????????????????????????????#####?## | | ????????????????????????????????####### | | ???????????????????????????????######## | | ???????????????????????????????### ### | | ??????????????????????????????### | | ??????????????????????????????### | | ?????????????????????????????### ### | +----------------------------------------------------+ Best States ------------- Heat Dissipation 25 Energy Generation 12 Energy Capacity 265 Matter Stores 300 Matter Capacity 300 Sight Range 16 Terrain Scan Density 10 Evasion (%) 55 Item Schematics ----------------- None Robot Schematics ------------------ None Fabricated ------------ Nothing Alien Tech Used ----------------- None Achievements -------------- None Challenges ------------ None Game ------ Seed ZhirovHypercooledSpoofer Manual? 0 Play Time 00:09:09 Cumulative 58.1 hours Start 2023.03.06 @ 09:48:03 End 2023.03.06 @ 09:59:44 Sessions 1 Manual Loads 0 Difficulty Rogue Special Mode None Game No. 40 Rogue 40 Adventurer 0 Explorer 0 Win Type - Total 0 Types 0/0/0/0/0/0/0/0/0 Lore% 27 Gallery% 42 Achievement% 35 Wizard Run 0 Options --------- ASCII 0 Keyboard 0 Movement Numpad Keybinds 0 Fullscreen 2 Font 18/SmallcapsGlow Map View 76x50 Tactical HUD 1 Map Filters NONE Filters NONE Steam 1 RUN: 4e49e5be-af00-4dd2-9bac-6d44c8e0d48e